Cogmind - Beta 11.1 @@@ ROGUE MODE // 2022.12.13 @ 23:21:30 Player: Rob Result: Destroyed by G-47 Trooper with Particle Gun Performance ------------- Evolutions (2) 1000 Regions Visited (4) 800 Robots Destroyed (33) 165 Value Destroyed (1133) 1133 Prototype IDs (1) 20 Alien Tech Used (0) 0 Bonus (70) 70 TOTAL SCORE: 3188 Bonus ------- High Alert Combat Kills 45 Follower Combat Kills 25 Cogmind --------- Core Integrity 0/550 Matter 231/300 Energy 240/240 System Corruption 0% Temperature Warm (128) Movement Hovering (120) Ox1 Location -8/Materials Parts ------- > --- POWER (3) -------- Nuclear Core > --- PROPULSION (2) --- Airjet > --- UTILITY (3) ------ Improved Cooling System Advanced Weight Redist. System Reactive Plating > --- WEAPON (3) ------- Beam Rifle Particle Gun Field Laser > --- INVENTORY (5) ---- Light Nuclear Core Airjet Improved Cooling System Heavy EM Pulse Gun Field Laser Peak State ------------ > --- POWER ------------ Light Ion Engine Light Nuclear Core > --- PROPULSION ------- Airjet Airjet > --- UTILITY ---------- Improved Cooling System Advanced Weight Redist. System Reactive Plating > --- WEAPON ----------- Beam Rifle Particle Gun Flak Gun > --- INVENTORY -------- Airjet Improved Flight Unit Improved Cooling System [Rating: 29] Favorites ----------- Power Deuterium Engine Engine Deuterium Engine Power Core Light Nuclear Core Propulsion Light Treads Treads Light Treads Leg Improved Aluminum Leg Hover Unit Airjet Flight Unit Cesium-ion Thruster Utility Large Storage Unit Device Shield Generator Storage Large Storage Unit Processor Signal Interpreter Protection Reflective Plating Weapon Beam Rifle Energy Gun Beam Rifle Energy Cannon Particle Cannon Ballistic Gun Heavy Assault Rifle Launcher Rocket Launcher Build | -11 -10 -10 -9 -8 ------- Run | Scr Mat Min Mat Mat Slots Evolved 4 | . . . 2 2 Power 2 | . . . 1 1 Propulsion . | . . . . . Utility 1 | . . . . 1 Weapon 1 | . . . 1 . Parts Attached 56 | 6 5 5 17 23 Power 11 | 1 1 1 5 3 Engine 7 | 1 . . 5 1 Core 4 | . 1 1 . 2 Reactor . | . . . . . Propulsion 13 | 2 . . 5 6 Treads 7 | 2 . . 3 2 Leg 2 | . . . 2 . Wheel . | . . . . . Hover 3 | . . . . 3 Flight 1 | . . . . 1 Utility 13 | 1 3 2 1 6 Device 6 | . 1 . 1 4 Storage 2 | 1 1 . . . Processor 1 | . 1 . . . Hackware . | . . . . . Protection 4 | . . 2 . 2 Artifact . | . . . . . Weapon 19 | 2 1 2 6 8 Energy Gun 12 | 2 . 2 3 5 Energy Cannon 1 | . . . 1 . Ballistic Gun 4 | . 1 . 1 2 Ballistic Cannon . | . . . . . Launcher 2 | . . . 1 1 Special Weapon . | . . . . . Impact Weapon . | . . . . . Slashing Weapon . | . . . . . Piercing Weapon . | . . . . . Special Melee Weapon . | . . . . . Unidentified Prototypes 1 | . . . . 1 Parts Lost 10 | . 1 1 . 8 Power 3 | . . . . 3 Propulsion 3 | . . 1 . 2 Utility 1 | . . . . 1 Weapon 3 | . 1 . . 2 Highest Loss Streak 3 | . 1 1 . 3 To Critical Strikes . | . . . . . Average Slot Usage (%) 87 | . 91 89 99 73 Engine 10 | . 3 . 19 11 Core 6 | . 10 14 2 2 Treads 15 | . 28 17 16 6 Leg 1 | . . . 4 . Hover 1 | . . . . 5 Device 8 | . 5 3 6 13 Storage 10 | . 14 14 11 6 Protection 4 | . . 10 4 3 Energy Gun 15 | . 25 14 15 11 Energy Cannon 3 | . . . 6 3 Ballistic Gun 6 | . 2 14 10 2 Launcher 1 | . . . . 3 Naked Turns . | . . . . . Heaviest Build 61 | 11 29 33 51 61 Greatest Support 46 | 40 40 40 40 46 Greatest Overweight (x) 11 | . . 1 1 11 Average Overweight (x) . | . . . 1 1 Largest Inventory Capacity 15 | 8 15 15 15 15 Average Capacity 13 | 7 14 15 15 11 Most Carried 15 | 2 9 15 15 15 Average Carried 9 | 1 6 10 11 10 Final Capacity 15 | 8 15 15 15 5 Final Carried 15 | 2 8 10 15 5 Class Distribution -------------------- 62% | Mutant 25% | Scavenger-Tank 8% | Tank 3% | Scavenger-Mutant Dominant Class ---------------- Mutant | -10/Materials Mutant | -10/Mines Scavenger-Tank | -9/Materials Mutant | -8/Materials Resources | -11 -10 -10 -9 -8 ----------- Run | Scr Mat Min Mat Mat Matter Collected 1176 | 162 152 165 202 495 Remotely . | . . . . . Salvage Created 996 | . 152 58 238 548 Parts 64 | . 13 1 12 38 Haulers Intercepted 1 | . . . . 1 Recyclers Shooed 2 | . 1 . 1 . Parts Field Recycled . | . . . . . Retrieved Matter . | . . . . . Parts Self-Destructed . | . . . . . Prevented . | . . . . . Kills | -11 -10 -10 -9 -8 ------- Run | Scr Mat Min Mat Mat Combat Hostiles Destroyed 24 | . 3 1 6 14 Guns 13 | . 3 1 1 8 Cannons 5 | . . . 1 4 AOE 6 | . . . 4 2 Classes Destroyed 8 | . 2 . 1 5 Builder 1 | . . . . 1 Tunneler 1 | . . . . 1 Hauler 1 | . . . . 1 Watcher 6 | . 1 . 2 3 Swarmer 4 | . . . . 4 Grunt 13 | . 3 1 4 5 Duelist 1 | . . . . 1 Sentry 6 | . . . 2 4 Best Kill Streak 5 | . 2 1 4 5 Combat Bots Only 4 | . 2 1 3 4 Max Kills in Single Turn 2 | . 1 1 2 2 Gunslinging 1 | . . . . 1 Exploded 2 | . . . 2 1 Melee . | . . . . . Uniques/NPCs Destroyed . | . . . . . Combat | -11 -10 -10 -9 -8 -------- Run | Scr Mat Min Mat Mat Damage Taken 2226 | . 489 107 253 1377 Core 649 | . 86 . 8 555 Absorbed by Shields 171 | . . . 58 113 Core Remaining (%) 87 | 100 . 65 98 . Volleys Fired 113 | . 23 3 26 61 Largest 3 | . 2 2 3 3 Hottest 184 | . 80 70 147 184 Shots Fired 211 | . 39 6 47 119 Gun 174 | . 39 6 32 97 Cannon 17 | . . . 6 11 Launcher 20 | . . . 9 11 Special . | . . . . . Kinetic 44 | . 3 3 17 21 Thermal 134 | . 23 3 21 87 Explosive 20 | . . . 9 11 Electromagnetic 13 | . 13 . . . Robot Hit Streak 7 | . 7 5 4 5 Robot Miss Streak 7 | . 4 1 7 5 Penetration Max . | . . . . . Secondary Targets 1 | . . . . 1 Max Gunslinging Chain 1 | . . . . 1 Shots Hit Robots 95 | . 24 4 18 49 Core Hits 75 | . 10 3 15 47 Critical Kills . | . . . . . Critical Parts Destroyed . | . . . . . Critical Strikes 3 | . . . . 3 Burn 3 | . . . . 3 Melee Attacks . | . . . . . Impact . | . . . . . Slashing . | . . . . . Piercing . | . . . . . Sneak Attacks . | . . . . . Combat Hostiles . | . . . . . Follow-up Attacks . | . . . . . Damage Inflicted 2534 | . 310 50 618 1556 Guns 1186 | . 310 50 182 644 Cannons 162 | . . . 21 141 Explosions 1181 | . . . 415 766 Melee . | . . . . . Ramming 5 | . . . . 5 Kinetic 377 | . 21 37 89 230 Thermal 871 | . 189 13 114 555 Explosive 1181 | . . . 415 766 Electromagnetic 100 | . 100 . . . Impact . | . . . . . Slashing . | . . . . . Piercing . | . . . . . Highest Corruption . | . . . . . Average Corruption . | . . . . . Corruption Purged . | . . . . . Corruption Blocked . | . . . . . Overload Shots . | . . . . . Overflow Damage 43 | . . . 1 42 Projectiles . | . . . . . Explosions 43 | . . . 1 42 Melee . | . . . . . Knockbacks . | . . . . . Impact . | . . . . . Kinetic . | . . . . . Secondary . | . . . . . Self-Inflicted Damage 166 | . . . 17 149 Shots 3 | . . . 1 2 Rammed 2 | . . . . 2 Targets Rammed 2 | . . . . 2 Kicked . | . . . . . Crushed . | . . . . . Highest Temperature 623 | . 344 117 221 623 Average Temperature 152 | . 165 67 70 190 Received Heat Transfer 968 | . 288 45 107 528 Effects 21 | . 2 . . 19 Shutdowns 5 | . . . . 5 Energy Bleed 2 | . . . . 2 Interference 3 | . 1 . . 2 Matter Decay 3 | . 1 . . 2 Short Circuit 4 | . . . . 4 Damage (major) 1 | . . . . 1 Damage (core) 3 | . . . . 3 Siege Activations . | . . . . . Robots Corrupted . | . . . . . Combat Hostiles . | . . . . . Parts Fried . | . . . . . Impact Corruptions . | . . . . . Robots Melted . | . . . . . Combat Hostiles . | . . . . . Parts Melted 1 | . . . . 1 Heat Transferred 2214 | . 425 37 272 1480 Parts Sabotaged . | . . . . . Parts Stolen . | . . . . . Parts Stripped . | . . . . . Power Chain Reactions . | . . . . . Missiles Intercepted . | . . . . . Alert | -11 -10 -10 -9 -8 ------- Run | Scr Mat Min Mat Mat Peak Influence 499 | . 120 38 347 499 Initial 98 | . . 15 . 98 Average 113 | . 53 20 31 288 Maximum Alert Level 2 | . . . 1 2 Low Security (%) 76 | 100 100 100 94 31 Level 1 14 | . . . 5 39 Level 2 9 | . . . . 29 Level 3 . | . . . . . Level 4 . | . . . . . Level 5 . | . . . . . High Security . | . . . . . Max Security . | . . . . . Squads Dispatched 3 | . . . 2 1 Investigation 1 | . . . 1 . Extermination . | . . . . . Reinforcement 2 | . . . 1 1 Assault . | . . . . . Garrison . | . . . . . Intercept . | . . . . . Searches Triggered . | . . . . . Construction Impeded 1 | . . . 1 . Haulers Reinforced . | . . . . . Active Scanning Responses . | . . . . . Cargo Convoy Interrupts . | . . . . . Stealth | -11 -10 -10 -9 -8 --------- Run | Scr Mat Min Mat Mat Distress Signals 5 | . 2 . 1 2 Communications Jammed . | . . . . . Distress Signals . | . . . . . Times Spotted 48 | . 11 2 12 23 Peak Tracking Total 6 | . 3 2 4 6 Tactical Retreats 3 | . 2 . . 1 Traps | -11 -10 -10 -9 -8 ------- Run | Scr Mat Min Mat Mat Traps Triggered 4 | . . 2 2 . Indirectly . | . . . . . Trap Hack Attempts . | . . . . . Triggered . | . . . . . Disarmed . | . . . . . Reprogrammed . | . . . . . Reused . | . . . . . Traps Extracted . | . . . . . Installed . | . . . . . Triggered . | . . . . . Machines | -11 -10 -10 -9 -8 ---------- Run | Scr Mat Min Mat Mat Machines Disabled 9 | . 1 . 3 5 Max in Single Turn 3 | . 1 . 3 2 Machines Sabotaged . | . . . . . Garrisons Compromised . | . . . . . Overloaded Fab Kills . | . . . . . Hacking | -11 -10 -10 -9 -8 --------- Run | Scr Mat Min Mat Mat Machines Accessed 5 | . 2 1 2 . Terminals 4 | . 2 . 2 . Fabricators . | . . . . . Repair Stations . | . . . . . Recycling Units . | . . . . . Scanalyzers . | . . . . . Garrison Access . | . . . . . Total Hacks 13 | . 6 1 6 . Successful 10 | . 4 1 5 . Failed 3 | . 2 . 1 . Catastrophic . | . . . . . Database Lockouts . | . . . . . Manual . | . . . . . Terminals 12 | . 6 . 6 . Fabricators . | . . . . . Repair Stations . | . . . . . Recycling Units . | . . . . . Scanalyzers . | . . . . . Garrison Access . | . . . . . Terminal Hacks 10 | . 4 1 5 . Record 4 | . 2 . 2 . Open Door 1 | . . 1 . . Emergency Access Points 1 | . . . 1 . Alert Level 3 | . 2 . 1 . Dispatch Records 1 | . . . 1 . Fabricator Hacks . | . . . . . Repair Station Hacks . | . . . . . Recycling Unit Hacks . | . . . . . Scanalyzer . | . . . . . Garrison Access Hacks . | . . . . . Unauthorized Hacks . | . . . . . Terminals . | . . . . . Fabricators . | . . . . . Repair Stations . | . . . . . Recycling Units . | . . . . . Scanalyzers . | . . . . . Garrison Access . | . . . . . Data Cores Recovered . | . . . . . Used . | . . . . . Hacking Detections 1 | . 1 . . . Full Trace Events . | . . . . . Feedback Events . | . . . . . Feedback Blocked . | . . . . . Robot Schematics Acquired . | . . . . . Robots Built . | . . . . . Authchips . | . . . . . Time . | . . . . . Total Robot Build Rating . | . . . . . Part Schematics Acquired . | . . . . . Parts Built . | . . . . . Authchips . | . . . . . Time . | . . . . . Total Part Build Rating . | . . . . . Parts Repaired . | . . . . . Time . | . . . . . Parts Recycled . | . . . . . Recycled Matter . | . . . . . Retrieved Matter . | . . . . . Retrieved Components . | . . . . . Parts Scanalyzed . | . . . . . Part Schematics Acquired . | . . . . . Parts Damaged . | . . . . . Bothacking | -11 -10 -10 -9 -8 ------------ Run | Scr Mat Min Mat Mat Used RIF Installer . | . . . . . Robots Hacked . | . . . . . Non-combat . | . . . . . Combat . | . . . . . Robot Hacks Applied . | . . . . . Relay Couplers Released . | . . . . . Fabnet Peak Effective % . | . . . . . Robots Rewired . | . . . . . Allies Hacked . | . . . . . Hacks Repelled . | . . . . . Allies | -11 -10 -10 -9 -8 -------- Run | Scr Mat Min Mat Mat Total Allies 2 | . . 2 . . Largest Group 2 | . . 2 1 . Highest-Rated Group 45 | . . 45 14 . Highest-Rated Ally 31 | . . 31 14 . Total Orders . | . . . . . Ally Attacks 6 | . . 6 . . Total Damage 86 | . . 86 . . Kills 1 | . . 1 . . Allies Corrupted . | . . . . . Allies Melted 1 | . . 1 . . Intel | -11 -10 -10 -9 -8 ------- Run | Scr Mat Min Mat Mat Robot Analysis Total . | . . . . . Derelict Logs Recovered . | . . . . . Drone Launches . | . . . . . Drone Recoveries . | . . . . . Exploration | -11 -10 -10 -9 -8 ------------- Run | Scr Mat Min Mat Mat Turns Passed 2558 | 81 426 431 814 806 Spaces Moved 1005 | 48 202 183 291 281 Core 34 | 8 . . . 26 Treads 745 | 40 202 183 221 99 Legs 70 | . . . 70 . Wheels . | . . . . . Hover 155 | . . . . 155 Flight 1 | . . . . 1 Fastest Speed 50 | 50 160 160 190 56 Average Speed 193 | 141 160 211 227 179 Slowest Speed 600 | 160 160 240 240 600 Overloaded Moves . | . . . . . Propulsion Burnouts . | . . . . . Robots Hopped . | . . . . . Cave-ins Triggered . | . . . . . Exploration Rate (%) 28 | 6 38 33 38 26 Regions Visited 4 Branch Regions 1 Pre-discovered Areas . | . . . . . Known Exits Taken . | . . . . . Unknown Exits Taken 4 | 1 1 1 1 . Scrap Searched 1 | . . 1 . . Spaces Dug 7 | . . . . 7 Terrain Destroyed 221 | . . . 70 151 Melee . | . . . . . Projectile 1 | . . . . 1 AOE 220 | . . . 70 150 Terrain Rammed . | . . . . . Walls Destroyed . | . . . . . Machines Disabled . | . . . . . Actions | -11 -10 -10 -9 -8 --------- Run | Scr Mat Min Mat Mat Total 1432 | 61 264 222 405 480 Wait 144 | . 26 18 32 68 Move 1001 | 47 201 182 290 281 Hop . | . . . . . Pick Up 70 | 8 9 8 23 22 Fast Attach . | . . . . . Attach 24 | 6 2 . 3 13 Detach . | . . . . . Swap 32 | . 3 5 14 10 Drop 46 | . . 6 17 23 Fire 113 | . 23 3 26 61 Melee . | . . . . . Ram 2 | . . . . 2 Kick . | . . . . . Crush . | . . . . . Escape Stasis . | . . . . . Rewire . | . . . . . Trap . | . . . . . Miscellaneous . | . . . . . Route ------- -11/Scrapyard -10/Materials -10/Mines -9/Materials -8/Materials History --------- Turn | Location | Event 6 | -11/Scrapyard | Discovered new exit (range 16) 82 | -11/Scrapyard | Entered Materials 321 | -10/Materials | Build established: Mutant 497 | -10/Materials | Discovered new exit (range 6) 508 | -10/Materials | Entered Mines 605 | -10/Mines | Met a Derelict who couldn't figure out how to use a Trap Extractor 928 | -10/Mines | Discovered new exit (range 3) 936 | -10/Mines | Assembled infested the area 939 | -10/Mines | Entered Materials 939 | -9/Materials | Accompanied by 1 ally 939 | -9/Materials | Evolved 2 slots: Power x1, Weapon x1 1425 | -9/Materials | Build established: Scavenger-Tank 1683 | -9/Materials | Discovered new exit (range 14) 1753 | -9/Materials | Entered another Materials area 1753 | -8/Materials | Evolved 2 slots: Power x1, Utility x1 2007 | -8/Materials | Build established: Mutant 2140 | -8/Materials | Core integrity fell below 50% 2178 | -8/Materials | Lost 3 parts (1p1n1w) 2357 | -8/Materials | Core integrity fell below 20% 2559 | -8/Materials | Destroyed by G-47 Trooper with Particle Gun Last Messages --------------- 02446_ Acquired 42 matter. 02448_ Acquired Prototype Flight Unit. 02453_ K-01 Serf collects debris. 02457_ O-16 Technician: "IFF HANDSHAKE FAILED. SECURING TERMINAL." 02462_ ALERT: Hostiles spotted, dispatching reinforcements to Terminal M002. 02470_ W-25 Informer destroyed. 02478_ Acquired Field Laser. 02486_ Acquired Hvy. EM Pulse Gun. 02487_ Dropped Flak Gun. 02488_ Dropped Prototype Flight Unit. 02491_ Acquired Field Laser. 02497_ Acquired Nuclear Core. 02509_ Material Processor disabled. 02521_ Critical hit (Burn: +37). 02522_ G-47 Trooper suffers critical hit (Burn). 02531_ K-01 Serf collects debris. 02548_ Airjet destroyed. 02548_ Critical hit (Burn: +37). 02558_ Lgt. Ion Engine destroyed. Map ----- +----------------------------------------------------+ | | | | | | | | | | | | | | | | | | | | | | | | | | | | | | | | | | | | | | | | | | | | | ??????????????????????###########???? | | ????????#######???????# """ #???? | | ????????# #???????# "" "" #???? | | ????????# @ ######### "" "" #???? | | ????????+ + "" "" #???? | | ????????# ### #???? | | ????????# #?# #???? | | ????????## #?# = #???? | | ?????????# #?# [ #???? | | ?????????# o % g#######+#####???? | | ?????????# ! g #??????? | | ?????????# k #??????? | | ?????????# #??????? | | ?????????# #??????? | | ?????????# #??????? | | ???????? + ####### #??????? | | ??????? # #?????# #??????? | | ?????????### +?????# #??????? | | ???????????# #?????# #??????? | | ???????????# ??????# #??????? | | ???????????# ??????# ^#??????? | | ???????????# ??????# ^^#??????? | | ???????????# ??????#= !#??????? | | ????????????? ??????## = ##?????? | | ???????????????? ??????# #?????? | | ????????????????????????# #?????? | | ????????????????????????# #?????? | | ????????????????????????# #?????? | +----------------------------------------------------+ Best States ------------- Heat Dissipation 58 Energy Generation 23 Energy Capacity 450 Matter Stores 300 Matter Capacity 300 Sight Range 16 Robot Scan Range 14 Terrain Scan Density 10 Additional Mass Support 9 Armor Coverage 150 Resistance: KI 20 Resistance: TH 10 Evasion (%) 53 Recoil Reduction 2 Item Schematics ----------------- None Robot Schematics ------------------ None Fabricated ------------ Nothing Alien Tech Used ----------------- None Achievements -------------- Oops Remodeling Challenges ------------ None Game ------ Seed ImprinterMagneticLoader Manual? 0 Play Time 01:10:44 Cumulative 17.5 hours Start 2022.12.13 @ 21:38:08 End 2022.12.13 @ 23:21:30 Sessions 1 Manual Loads 0 Difficulty Rogue Special Mode None Game No. 19 Rogue 19 Adventurer 0 Explorer 0 Win Type - Total 0 Types 0/0/0/0/0/0/0/0/0 Lore% 5 Gallery% 19 Achievement% 5 Wizard Run 0 Options --------- ASCII 0 Keyboard 0 Movement Numpad Keybinds 0 Fullscreen 1 Font 36/Smallcaps Map View 76x50 Tactical HUD 1 Map Filters NONE Filters NONE Steam 1 RUN: b4da2e90-3eac-409a-b096-28db4034727e